bitfinex-derivatives/quotes_BNBF0:USTF0_20250326
["timestamp","ask_amount","ask_price","bid_price","bid_amount"]
[1742956609483,0.31765696,629.61,628.91,1.18761538]
[1742956611677,0.31765696,629.61,628.94,1.18761538]
[1742956612076,0.27655702,629.6,628.94,1.18761538]
[1742956613984,0.27655702,629.6,628.97,1.18761538]
[1742956615790,0.27655702,629.6,629.02,1.18761538]
[1742956616788,0.31765696,629.61,629.02,1.18761538]
[1742956617288,0.441,629.59,629.02,1.18761538]
[1742956617887,0.441,629.59,629.04,1.18761538]
[1742956618087,0.27654604,629.58,629.04,1.18761538]
[1742956619793,0.441,629.59,629.04,1.18761538]
[1742956621191,0.27654384,629.58,629.04,1.18761538]
[1742956622896,0.441,629.59,629.05,1.18761538]
[1742956624197,0.27654274,629.58,629.05,1.18761538]
[1742956625398,0.27654274,629.58,629.01,1.18761538]
[1742956625804,0.441,629.59,629.01,1.18761538]
[1742956626003,0.75866705,629.59,629.01,1.18761538]
[1742956627197,0.59423021,629.58,629.01,1.18761538]
[1742956627503,0.31767714,629.57,629.0,1.18761538]
[1742956629208,0.31767714,629.57,628.96,1.18761538]
[1742956630207,0.27656362,629.56,628.96,1.18761538]
[1742956632608,0.27656362,629.56,628.89,1.18761538]
[1742956634703,0.31767714,629.57,628.87,1.18761538]
[1742956635107,0.27657351,629.55,628.87,1.18761538]
[1742956636308,0.27657351,629.55,628.82,1.18761538]
[1742956637904,0.31767714,629.57,628.82,1.18761538]
[1742956638308,0.2765812,629.54,628.82,1.18761538]
[1742956640914,0.441,629.53,628.82,1.18761538]
[1742956641316,0.441,629.53,628.64,1.18761538]
[1742956642115,0.27660099,629.52,628.64,1.18761538]
[1742956643413,0.27660099,629.52,628.65,1.18761538]
[1742956645317,0.27660099,629.52,628.64,1.18761538]
[1742956646713,0.441,629.53,628.64,1.18761538]
[1742956647019,0.27660538,629.51,628.64,1.18761538]
[1742956647622,0.27660538,629.51,628.65,1.18761538]
[1742956649926,0.441,629.53,628.65,1.18761538]
[1742956650720,0.441,629.53,628.78,1.18761538]
[1742956651323,0.2765856,629.52,628.78,1.18761538]
[1742956652924,0.441,629.53,628.85,1.18761538]
[1742956654122,0.2765779,629.52,628.85,1.18761538]
[1742956654526,0.2765779,629.52,628.86,0.27234069]
[1742956655320,0.2765779,629.52,628.95,1.18761538]
[1742956655826,0.441,629.53,628.95,1.18761538]
[1742956656224,0.27656691,629.51,628.95,1.18761538]
[1742956658628,0.27656691,629.51,628.85,1.18761538]
[1742956658829,0.441,629.53,628.85,1.18761538]
[1742956660129,0.27655593,629.52,628.85,1.18761538]
[1742956660722,0.27655593,629.52,628.68,1.18761538]
[1742956662730,0.27655593,629.52,628.67,1.18761538]
[1742956663326,0.736,629.51,628.67,1.18761538]
[1742956665335,0.736,629.51,628.68,1.18761538]
[1742956666233,0.2765856,629.5,628.69,0.2723244]
[1742956666533,0.7165856,629.5,628.69,0.2723244]
[1742956667935,0.44,629.5,628.69,0.2723244]
[1742956668333,0.44,629.5,628.68,1.18761538]
[1742956668532,0.44,629.5,628.69,0.27232592]
[1742956669339,0.27659439,629.49,628.69,0.27232592]
[1742956669841,0.27659439,629.49,628.91,1.18761538]
[1742956670934,0.44,629.5,628.91,1.18761538]
[1742956671535,0.44,629.5,628.9,1.18761538]
[1742956672040,0.27657021,629.49,628.9,1.18761538]
[1742956673640,0.44,629.5,628.9,1.18761538]
[1742956673941,0.27657131,629.48,628.9,1.18761538]
[1742956674337,0.27657131,629.48,628.91,1.18761538]
[1742956676638,0.44,629.5,628.91,1.18761538]
[1742956676937,0.44,629.5,628.52,0.98522325]
[1742956676938,0.27657021,629.47,628.95,1.18761538]
[1742956678946,0.27657021,629.47,628.98,1.18761538]
[1742956679938,0.44,629.5,628.98,1.18761538]
[1742956681139,0.27656142,629.49,628.98,1.18761538]
[1742956682842,0.44,629.5,628.98,1.18761538]
[1742956683249,0.27656252,629.48,629.01,1.18761538]
[1742956685856,0.27656252,629.48,629.02,1.18761538]
[1742956688451,0.27656252,629.48,628.76,1.18761538]
[1742956688654,0.44,629.5,628.76,1.18761538]
[1742956689051,0.27660209,629.47,628.76,1.18761538]
[1742956690356,0.27660209,629.47,628.74,1.18761538]
[1742956691861,0.44,629.46,628.74,1.18761538]
[1742956692063,0.71659659,629.46,628.74,1.18761538]
[1742956692263,0.71659659,629.46,628.72,1.18761538]
[1742956692457,0.899,629.45,628.72,1.18761538]
[1742956694866,0.899,629.45,628.69,1.18761538]
[1742956697669,0.899,629.45,628.76,1.18761538]
[1742956698067,0.27661528,629.44,628.76,1.18761538]
[1742956699170,0.3177478,629.43,628.76,1.18761538]
[1742956700176,0.3177478,629.43,628.69,1.18761538]
[1742956702077,0.3177478,629.43,628.32,1.18761538]
[1742956702269,0.27662627,629.42,628.36,0.27662627]
[1742956703678,0.3177478,629.43,628.32,1.18761538]
[1742956704073,0.27667576,629.41,628.36,0.27667576]
[1742956706781,0.3177478,629.43,628.31,1.18761538]
[1742956708185,0.27666806,629.42,628.32,0.27666806]
[1742956708488,0.27666806,629.42,628.33,0.27237864]
[1742956709286,0.27666806,629.42,628.34,0.27237864]
[1742956709482,0.27666806,629.42,628.33,0.27237864]
[1742956709681,0.27666806,629.42,628.34,0.59067765]
[1742956709882,0.3177478,629.43,628.34,0.59067765]
[1742956709883,0.3177478,629.43,628.35,0.27237864]
[1742956710483,0.3177478,629.43,628.36,0.27232257]
[1742956710688,0.3177478,629.43,628.35,0.27232257]
[1742956710884,0.3177478,629.43,628.36,0.27232257]
[1742956711088,0.3177478,629.43,628.35,0.27232257]
[1742956711283,0.3177478,629.43,628.36,0.27232257]
[1742956711482,0.3177478,629.43,628.64,1.18761538]
[1742956714491,0.3177478,629.43,628.65,1.18761538]
[1742956716187,0.3177478,629.43,628.36,1.18761538]
[1742956717190,0.3177478,629.43,628.37,0.27663727]
[1742956719296,0.591,629.42,628.37,0.27663727]
[1742956719490,1.031,629.42,628.37,0.27663727]
[1742956721699,1.031,629.42,628.35,1.18761538]
[1742956722098,1.031,629.42,628.36,0.27664496]
[1742956722800,1.031,629.42,628.4,1.18761538]
[1742956723700,1.031,629.42,628.41,0.27234975]
[1742956725297,1.031,629.42,628.63,1.18761538]
[1742956726093,1.031,629.42,628.64,0.27234975]
[1742956727602,1.031,629.42,628.77,1.18761538]
[1742956727798,1.031,629.42,628.78,0.27235129]
[1742956729514,1.031,629.42,628.83,1.18761538]
[1742956732315,1.031,629.42,628.58,1.18761538]
[1742956735217,1.031,629.42,628.59,1.18761538]
[1742956735616,0.591,629.42,628.6,0.27229392]
[1742956737811,0.44,629.41,628.67,1.18761538]
[1742956740123,0.44,629.41,628.68,1.18761538]
[1742956742328,0.44,629.41,628.7,1.18761538]
[1742956742823,0.814,629.4,628.7,1.18761538]
[1742956744429,0.814,629.4,628.71,1.18761538]
[1742956746224,0.814,629.4,628.58,0.2765834]
[1742956746225,0.814,629.4,628.73,1.18761538]
[1742956749330,0.814,629.4,628.74,0.27230655]
[1742956750633,0.814,629.4,628.75,0.27230681]
[1742956750831,0.814,629.4,628.76,0.27230681]
[1742956751033,0.814,629.4,628.73,1.18761538]
[1742956751034,0.814,629.4,628.74,0.27230681]
[1742956751232,0.814,629.4,628.75,0.27230681]
[1742956751433,0.814,629.4,628.73,1.18761538]
[1742956751434,0.814,629.4,628.76,0.27230681]
[1742956751733,0.814,629.4,628.77,0.27230681]
[1742956751934,0.814,629.4,628.73,1.18761538]
[1742956752128,0.814,629.4,628.81,1.18761538]
[1742956753936,0.2765812,629.54,628.81,1.18761538]
[1742956754130,0.439,629.39,628.81,1.18761538]
[1742956754333,0.439,629.39,628.82,0.27230659]
[1742956754530,0.439,629.39,628.81,1.18761538]
[1742956754729,0.439,629.39,628.82,0.27230137]
[1742956755136,0.439,629.39,628.84,1.18761538]
[1742956755834,0.439,629.39,628.85,0.27229974]
[1742956757238,0.439,629.39,628.9,1.18761538]
[1742956758041,0.917,629.38,628.9,1.18761538]
[1742956759242,0.917,629.38,628.87,1.18761538]
[1742956761343,0.917,629.38,628.89,1.18761538]
[1742956763546,0.917,629.38,628.6,1.46415592]
[1742956763940,0.917,629.38,628.6,1.18761538]
[1742956765143,0.917,629.38,628.6,1.46419768]
[1742956765543,0.917,629.38,628.65,1.18761538]
[1742956767543,0.917,629.38,628.66,0.27227652]
[1742956768149,0.917,629.38,628.68,1.18761538]
[1742956768350,0.917,629.38,628.69,0.27227652]
[1742956770451,0.917,629.38,628.7,0.27226016]
[1742956770651,0.917,629.38,628.69,0.27226016]
[1742956770851,0.917,629.38,628.7,0.27226016]
[1742956771053,0.439,629.39,628.89,1.18761538]
[1742956773254,0.439,629.39,628.96,1.18761538]
[1742956773451,0.842,629.38,628.96,1.18761538]
[1742956775555,0.842,629.38,628.95,1.18761538]
[1742956777559,0.842,629.38,629.0,1.18761538]
[1742956779762,0.842,629.38,629.02,1.18761538]
[1742956785068,0.439,629.37,628.96,1.18761538]
[1742956787565,0.439,629.37,628.98,1.18761538]
[1742956789763,0.439,629.37,628.91,1.18761538]
[1742956792068,0.439,629.37,628.92,1.18761538]
[1742956793770,0.439,629.37,628.94,1.18761538]
[1742956796471,0.439,629.37,628.95,1.45988048]
[1742956796671,0.439,629.37,628.95,1.18761538]
[1742956799665,0.439,629.37,629.07,1.18761538]
[1742956804275,0.439,629.37,629.09,1.18761538]
[1742956805972,0.439,629.37,629.05,1.18761538]
[1742956808576,0.439,629.37,629.08,1.18761538]
[1742956811079,0.439,629.37,628.65,0.27652955]
[1742956811080,0.439,629.37,629.11,1.18761538]
[1742956813186,0.439,629.37,629.13,1.18761538]
[1742956814086,0.92,629.38,629.13,1.18761538]
[1742956816087,0.92,629.38,628.66,1.26179236]
[1742956816088,0.92,629.38,629.1,1.18761538]
[1742956819894,0.92,629.38,629.01,1.18761538]
[1742956825194,0.92,629.38,629.02,1.18761538]
[1742956827898,0.92,629.38,628.97,1.18761538]
[1742956830503,0.92,629.38,629.05,1.18761538]
[1742956831101,0.439,629.41,629.05,1.18761538]
[1742956832304,0.439,629.41,628.89,1.18761538]
[1742956833499,0.919,629.4,628.89,1.18761538]
[1742956834299,0.919,629.4,628.84,1.18761538]
[1742956836906,0.919,629.4,628.9,1.18761538]
[1742956839708,0.919,629.4,628.88,1.18761538]
[1742956841109,0.438,629.39,628.88,1.18761538]
[1742956841502,0.438,629.39,628.81,1.18761538]
[1742956843512,0.438,629.39,628.8,1.18761538]
[1742956845611,0.438,629.39,628.6,0.27657241]
[1742956845612,0.438,629.39,628.83,1.18761538]
[1742956849117,0.438,629.39,628.68,1.18761538]
[1742956851815,0.438,629.39,628.78,1.18761538]
[1742956856319,0.438,629.39,628.79,1.18761538]
[1742956857520,0.438,629.39,628.8,0.27227051]
[1742956858520,0.438,629.39,628.79,0.27227051]
[1742956861217,0.438,629.39,628.95,1.18761538]
[1742956862224,0.919,629.4,628.95,1.18761538]
[1742956863033,0.919,629.4,628.63,0.27656911]
[1742956863034,0.919,629.4,628.96,1.18761538]
[1742956863531,0.27654823,629.55,628.96,1.18761538]
[1742956865633,0.438,629.54,628.96,1.18761538]
[1742956866243,0.438,629.54,628.97,0.27226356]
[1742956866426,0.934,629.53,628.97,0.27226356]
[1742956867730,0.934,629.53,628.98,1.18761538]
[1742956870137,0.934,629.53,629.04,1.18761538]
[1742956871437,0.934,629.53,629.0,1.18761538]
[1742956874239,0.934,629.53,629.07,1.18761538]
[1742956881940,0.934,629.53,629.12,1.18761538]
[1742956884145,0.934,629.53,629.06,1.18761538]
[1742956887445,0.438,629.54,629.06,1.18761538]
[1742956889348,0.438,629.54,629.07,1.18761538]
[1742956891148,1.17442851,629.53,629.07,1.18761538]
[1742956891450,1.17442851,629.53,629.01,1.18761538]
[1742956892943,0.898,629.53,629.01,1.18761538]
[1742956894344,0.27655373,629.52,629.01,1.18761538]
[1742956894853,0.27655373,629.52,628.98,1.18761538]
[1742956896045,0.898,629.53,628.98,1.18761538]
[1742956897150,0.71457021,629.52,628.98,1.18761538]
[1742956897346,0.71457021,629.52,628.79,1.18761538]
[1742956898945,0.438,629.52,628.79,1.18761538]
[1742956899349,0.31770742,629.51,628.79,1.18761538]
[1742956899547,0.31770742,629.51,628.62,1.18761538]
[1742956900147,0.27663507,629.5,628.62,1.18761538]
[1742956900347,0.31771751,629.49,628.62,1.18761538]
[1742956902856,0.31771751,629.49,628.52,1.18761538]
[1742956903055,0.31771751,629.49,628.53,0.27240209]
[1742956903056,0.27663507,629.48,628.53,0.27240209]
[1742956903354,0.31772761,629.47,628.53,0.27240209]
[1742956903856,0.31772761,629.47,628.54,0.27240368]
[1742956904052,0.31772761,629.47,628.53,0.27240368]
[1742956904357,0.31772761,629.47,628.54,0.27240188]
[1742956904656,0.31772761,629.47,628.52,1.18761538]
[1742956904855,0.31772761,629.47,628.53,0.27240215]
[1742956905951,0.31772761,629.47,628.46,0.27240215]
[1742956906156,0.27665486,629.46,628.47,0.27240215]
[1742956906457,0.3177377,629.45,628.48,0.27240215]
[1742956906659,0.3177377,629.45,628.49,0.27240215]
[1742956906957,0.3177377,629.45,628.5,0.27239698]
[1742956907155,0.3177377,629.45,628.46,0.27239698]
[1742956907355,0.3177377,629.45,628.47,0.27239698]
[1742956907554,0.3177377,629.45,628.46,0.27239698]
[1742956907752,0.3177377,629.45,628.47,0.27239698]
[1742956907950,0.3177377,629.45,628.46,0.27239698]
[1742956908158,0.3177377,629.45,628.47,0.27239698]
[1742956908357,0.3177377,629.45,628.42,1.18761538]
[1742956908557,0.3177377,629.45,628.43,0.27240981]
[1742956909255,0.27666586,629.44,628.43,0.27240981]
[1742956909957,0.27666586,629.44,628.42,1.18761538]
[1742956910154,0.27666586,629.44,628.43,0.27240618]
[1742956910358,0.3177478,629.43,628.43,0.27240618]
[1742956910555,0.3177478,629.43,628.44,0.27240618]
[1742956910755,0.3177478,629.43,628.45,0.27240618]
[1742956910958,0.3177478,629.43,628.39,0.27240618]
[1742956911159,0.3177478,629.43,628.4,0.27240618]
[1742956911363,0.3177478,629.43,628.41,0.27240618]
[1742956911564,0.3177478,629.43,628.42,0.27240962]
[1742956911756,0.3177478,629.43,628.39,0.27240962]
[1742956911962,0.3177478,629.43,628.4,0.27240962]
[1742956912261,0.3177478,629.43,628.41,0.27240962]
[1742956912262,0.27667026,629.42,628.41,0.27240962]
[1742956912461,0.3177579,629.41,628.39,0.27240962]
[1742956912662,0.3177579,629.41,628.4,0.27240962]
[1742956912862,0.3177579,629.41,628.39,0.27240962]
[1742956913063,0.3177579,629.41,628.4,0.27240962]
[1742956913259,0.3177579,629.41,628.39,0.27240962]
[1742956913462,0.3177579,629.41,628.4,0.27240962]
[1742956913663,0.3177579,629.41,628.39,0.27240962]
[1742956913859,0.3177579,629.41,628.4,0.27240962]
[1742956914056,0.3177579,629.41,628.39,0.27240962]
[1742956914261,0.3177579,629.41,628.4,0.27240962]
[1742956914564,0.3177579,629.41,628.41,0.27240962]
[1742956915162,0.27666806,629.4,628.41,0.27240962]
[1742956917068,0.3177579,629.41,628.43,1.18761538]
[1742956917262,0.3177579,629.41,628.44,0.27240962]
[1742956917761,0.3177579,629.41,628.43,1.18761538]
[1742956917962,0.3177579,629.41,628.44,0.272408]
[1742956918172,0.27666476,629.4,628.44,0.272408]
[1742956919167,0.871,629.39,628.44,0.272408]
[1742956919468,0.871,629.39,628.48,1.18761538]
[1742956919662,0.871,629.39,628.49,0.272408]
[1742956920770,0.437,629.38,628.49,0.272408]
[1742956921368,0.27667356,629.37,628.49,0.272408]
[1742956921568,0.27667356,629.37,628.51,1.18761538]
[1742956921769,0.27667356,629.37,628.52,0.272408]
[1742956924369,0.27667356,629.37,628.59,1.18761538]
[1742956924573,0.31778314,629.36,628.59,1.18761538]
[1742956926969,0.31778314,629.36,620.87,5.70343692]
[1742956926970,0.31778314,629.36,628.16,1.18761538]
[1742956927170,0.31778314,629.36,628.17,0.27253149]
[1742956929775,0.30965035,629.36,628.17,0.27253149]
[1742956930176,0.27675607,629.35,628.17,0.27253149]
[1742956930371,0.31779324,629.34,628.17,0.27253149]
[1742956930576,0.31779324,629.34,628.18,1.18761538]
[1742956930774,0.31779324,629.34,628.19,0.27253149]
[1742956931170,0.31779324,629.34,628.2,0.2721286]
[1742956931374,0.31779324,629.34,628.21,0.2721286]
[1742956931577,0.31779324,629.34,628.22,0.2721286]
[1742956931773,0.31779324,629.34,628.18,1.18761538]
[1742956931774,0.31779324,629.34,628.23,0.2721286]
[1742956931968,0.31779324,629.34,628.24,0.2721286]
[1742956932173,0.31779324,629.34,628.19,0.2721286]
[1742956932571,0.31779324,629.34,628.22,1.18761538]
[1742956932772,0.31779324,629.34,628.23,0.27210266]
[1742956933177,0.27673186,629.33,628.23,0.27210266]
[1742956933379,0.31780334,629.32,628.23,0.27210266]
[1742956935483,0.31780334,629.32,628.31,1.18761538]
[1742956935681,0.31780334,629.32,628.32,0.27210266]
[1742956935887,0.31780334,629.32,628.33,0.27210376]
[1742956936076,0.31780334,629.32,628.32,0.27210376]
[1742956936278,0.31780334,629.32,628.33,0.27210376]
[1742956936480,0.31780334,629.32,628.34,0.27210376]
[1742956936680,0.31780334,629.32,628.35,0.27210376]
[1742956936878,0.31780334,629.32,628.36,0.27210376]
[1742956937088,0.31780334,629.32,628.33,0.27210376]
[1742956937288,0.31780334,629.32,628.34,0.27210376]
[1742956937482,0.31780334,629.32,628.35,0.27210376]
[1742956937683,0.31780334,629.32,628.33,0.27210376]
[1742956937880,0.31780334,629.32,628.34,0.27210376]
[1742956938084,0.31780334,629.32,628.35,0.27210376]
[1742956938278,0.27673626,629.31,628.33,0.27210376]
[1742956938482,0.31781344,629.3,628.34,0.27210376]
[1742956938679,0.31781344,629.3,628.35,0.27210376]
[1742956938889,0.31781344,629.3,628.36,0.2721164]
[1742956939281,0.31781344,629.3,628.37,0.2721164]
[1742956939683,0.31781344,629.3,628.38,0.2721164]
[1742956939985,0.31781344,629.3,628.39,0.2721164]
[1742956940184,0.31781344,629.3,628.3,0.2721164]
[1742956940385,0.31781344,629.3,628.29,1.18761538]
[1742956940386,0.31781344,629.3,628.31,0.2721164]
[1742956940687,0.31781344,629.3,628.32,0.2721137]
[1742956940991,0.31781344,629.3,628.33,0.2721137]
[1742956941282,0.31781344,629.3,628.29,1.18761538]
[1742956941283,0.27673406,629.29,628.34,0.27211258]
[1742956941488,0.31782354,629.28,628.35,0.27211258]
[1742956941688,0.31782354,629.28,628.3,1.45972796]
[1742956941887,0.31782354,629.28,628.31,0.27211258]
[1742956942086,0.437,629.27,628.3,1.18761538]
[1742956942287,0.75482859,629.27,628.31,0.27211229]
[1742956944891,0.75482859,629.27,628.35,1.18761538]
[1742956945087,0.75482859,629.27,628.36,0.27211229]
[1742956945288,0.27673736,629.26,628.36,0.27211229]
[1742956945685,0.27673736,629.26,628.37,0.27211389]
[1742956945889,0.27673736,629.26,628.38,0.27211389]
[1742956946088,0.27673736,629.26,628.35,1.18761538]
[1742956946089,0.27673736,629.26,628.39,0.27211389]
[1742956946387,0.27673736,629.26,628.4,0.27211389]
[1742956946592,0.27673736,629.26,628.36,0.27211389]
[1742956946891,0.75482859,629.27,628.37,0.27211389]
[1742956947086,0.75482859,629.27,628.35,1.18761538]
[1742956947287,0.75482859,629.27,628.36,0.27211428]
[1742956947489,0.75482859,629.27,628.37,0.27211428]
[1742956947685,0.31783364,629.26,628.38,0.27211428]
[1742956947888,0.31783364,629.26,628.32,1.18761538]
[1742956947889,0.31783364,629.26,628.33,0.27211428]
[1742956948091,0.31783364,629.26,628.34,0.27211428]
[1742956948287,0.27674176,629.25,628.33,0.27211428]
[1742956948488,0.31784374,629.24,628.33,0.27211428]
[1742956949387,0.31784374,629.24,628.33,1.45972966]
[1742956949591,0.31784374,629.24,628.34,0.27211428]
[1742956951097,0.27673186,629.23,628.34,0.27211428]
[1742956951702,0.27673186,629.23,628.33,1.18761538]
[1742956951903,0.27673186,629.23,628.34,0.27204899]
[1742956952395,0.27673186,629.23,628.33,0.27204899]
[1742956952594,0.27673186,629.23,628.34,0.27204899]
[1742956953099,0.31784374,629.24,628.35,0.27204899]
[1742956953299,0.31784374,629.24,628.36,0.27204899]
[1742956953499,0.31784374,629.24,628.33,0.27204899]
[1742956953701,0.31784374,629.24,628.34,0.27204899]
[1742956953892,0.31784374,629.24,628.35,0.27204899]
[1742956954092,0.31784374,629.24,628.33,0.27204899]
[1742956954299,0.27671096,629.23,628.34,0.27204899]
[1742956954502,0.27671096,629.23,628.42,1.18761538]
[1742956954693,0.27671096,629.23,628.43,0.27204899]
[1742956955795,0.27671096,629.23,628.42,1.18761538]
[1742956956000,0.31784374,629.24,628.43,0.27204353]
[1742956957196,0.31784374,629.24,628.47,1.18761538]
[1742956957400,0.27669996,629.23,628.47,1.18761538]
[1742956957603,0.27669996,629.23,628.48,0.2720438]
[1742956958599,0.27669996,629.23,628.48,1.45965918]
[1742956958799,0.27669996,629.23,628.48,1.18761538]
[1742956959003,0.31784374,629.24,628.48,1.18761538]
[1742956960407,0.27669336,629.23,628.48,1.18761538]
[1742956960614,0.27669336,629.23,628.39,1.18761538]
[1742956961910,0.31784374,629.24,628.4,0.27204319]
[1742956962408,0.27670656,629.22,628.4,0.27204319]
[1742956963102,0.27670656,629.22,628.4,1.45965857]
[1742956963306,0.27670656,629.22,628.4,1.18761538]
[1742956964812,0.437,629.21,628.4,1.18761538]
[1742956965013,1.032,629.21,628.4,1.18761538]
[1742956965213,1.032,629.21,628.41,1.18761538]
[1742956966107,1.032,629.21,628.42,0.27204319]
[1742956966307,0.27670766,629.2,628.42,0.27204319]
[1742956968517,0.27670766,629.2,628.52,1.18761538]
[1742956971021,0.27670766,629.2,628.47,1.18761538]
[1742956973218,0.27670766,629.2,628.46,1.18761538]
[1742956973925,0.27670766,629.2,628.46,1.17498759]
[1742956974223,1.032,629.21,628.46,1.17498759]
[1742956975421,0.27672196,629.2,628.46,1.17498759]
[1742956976319,0.27672196,629.2,628.22,0.27672196]
[1742956976519,0.27672196,629.2,628.23,0.27268611]
[1742956977026,1.032,629.21,628.23,0.27268611]
[1742956977219,1.032,629.21,628.16,0.27268611]
[1742956977420,0.27675607,629.19,628.22,0.27675607]
[1742956977623,0.27675607,629.19,628.23,0.27268611]
[1742956978727,0.27675607,629.19,628.22,0.27675607]
[1742956978924,0.27675607,629.19,628.23,0.27268817]
[1742956979923,1.032,629.21,628.23,0.27268817]
[1742956980127,1.032,629.21,628.17,0.27268817]
[1742956980333,0.27675717,629.18,628.21,0.27675717]
[1742956980630,0.27675717,629.18,628.22,0.27269221]
[1742956983130,1.032,629.21,628.22,0.27269221]
[1742956983331,1.032,629.21,628.23,0.27269221]
[1742956983530,1.032,629.21,628.24,0.27269221]
[1742956983732,1.032,629.21,628.18,1.185948]
[1742956983733,1.032,629.21,628.19,0.27269221]
[1742956983931,1.032,629.21,628.2,0.27269221]
[1742956984133,1.032,629.21,627.87,3.29791271]
[1742956984134,1.032,629.21,628.28,1.185948]
[1742956984435,0.27675497,629.2,628.29,0.27268934]
[1742956984732,0.27675497,629.2,628.3,0.27268952]
[1742956984926,0.27675497,629.2,628.31,0.27268952]
[1742956985231,0.27675497,629.2,628.32,0.27268952]
[1742956985426,0.27675497,629.2,628.33,0.27268952]
[1742956985626,0.27675497,629.2,628.34,0.27268952]
[1742956985824,0.27675497,629.2,628.35,0.27268952]
[1742956986025,1.032,629.21,628.36,0.27268952]
[1742956986227,1.032,629.21,628.37,0.27269084]
[1742956986427,1.032,629.21,628.29,0.27269084]
[1742956986627,1.032,629.21,628.3,0.27269084]
[1742956986832,1.032,629.21,628.31,0.27269084]
[1742956987029,1.032,629.21,628.32,0.27269084]
[1742956987334,0.27674286,629.2,628.33,0.27269084]
[1742956987534,0.27674286,629.2,628.34,0.27269084]
[1742956987729,0.27674286,629.2,628.3,0.27269084]
[1742956988935,1.032,629.21,628.3,0.27269084]
[1742956989435,0.27674286,629.19,628.42,1.185948]
[1742956989635,0.27674286,629.19,628.43,0.2726947]
[1742956991731,0.31787405,629.18,628.43,0.2726947]
[1742956991931,0.31787405,629.18,628.36,1.185948]
[1742956993639,0.437,629.17,628.36,1.185948]
[1742956994140,0.437,629.17,628.08,1.185948]
[1742956994340,0.437,629.17,628.09,0.27271661]
[1742956994640,0.437,629.17,628.1,0.27271662]
[1742956994841,0.437,629.17,628.09,0.27271662]
[1742956995042,0.437,629.17,628.1,0.27271662]
[1742956995240,0.437,629.17,628.11,0.27271662]
[1742956995442,0.437,629.17,628.12,0.27271662]
[1742956995636,0.437,629.17,628.09,0.27271662]
[1742956995840,0.646,629.16,628.1,0.27270781]
[1742956996042,0.646,629.16,628.11,0.27270781]
[1742956996337,0.27678248,629.15,628.12,0.27270781]
[1742956996538,0.27678248,629.15,628.13,0.27270781]
[1742956996741,0.27678248,629.15,628.09,0.27270781]
[1742956996940,0.27678248,629.15,628.1,0.27270781]
[1742956997139,0.27678248,629.15,628.11,0.27270781]
[1742956997341,0.27678248,629.15,628.12,0.27270781]
[1742956997538,0.27678248,629.15,628.13,0.27270781]
[1742956997741,0.27678248,629.15,628.14,0.27270781]
[1742956997938,0.646,629.16,628.15,0.27270781]
[1742956998141,0.646,629.16,628.16,0.27270781]
[1742956998337,0.646,629.16,628.07,0.27270781]
[1742956998544,0.646,629.16,628.08,0.27270781]
[1742956998744,0.646,629.16,628.07,0.27270781]
[1742956999045,0.646,629.16,628.08,0.27270604]
[1742956999345,0.27678028,629.15,628.09,0.27270604]
[1742956999538,0.27678028,629.15,628.1,0.27270604]
[1742956999742,0.27678028,629.15,628.16,1.185948]
[1742956999942,0.27678028,629.15,628.17,0.27270604]
[1742957000644,0.27678028,629.15,628.18,0.27268688]
[1742957000845,0.27678028,629.15,628.19,0.27268688]
[1742957001146,0.646,629.16,628.2,0.27268688]
[1742957001345,0.646,629.16,628.21,0.27268688]
[1742957001646,0.646,629.16,628.23,1.185948]
[1742957001847,0.646,629.16,628.24,0.27268688]
[1742957002047,0.646,629.16,628.23,1.185948]
[1742957002241,0.27675937,629.15,628.24,0.27269255]
[1742957004141,0.646,629.16,628.24,1.45864055]
[1742957004345,0.27675057,629.14,628.25,0.27269255]
[1742957006543,0.27675057,629.14,628.45,1.185948]
[1742957006748,0.27675057,629.14,628.46,0.27269255]
[1742957007048,0.646,629.16,628.47,0.27268274]
[1742957007248,0.27672636,629.13,628.46,0.27268274]
[1742957007448,0.27672636,629.13,628.47,0.27268274]
[1742957007646,0.27672636,629.13,628.48,0.27268274]
[1742957007945,0.27672636,629.13,628.49,0.27268274]
[1742957008149,0.27672636,629.13,628.45,1.185948]
[1742957008548,0.27672636,629.13,628.46,0.27268726]
[1742957009151,0.27672636,629.13,628.4,0.27268726]
[1742957009351,0.27672636,629.13,628.41,0.27268726]
[1742957009549,0.27672636,629.13,628.42,0.27268726]
[1742957009747,0.27672636,629.13,628.43,0.27268726]
[1742957009948,0.27672636,629.13,628.44,0.27268726]
[1742957010148,0.614,629.12,628.4,0.27268726]